bitfinex/quotes_SOLUSD_20240913
["timestamp","ask_amount","ask_price","bid_price","bid_amount"]
[1726214325958,0.2498811,134.84,134.83,50.702864]
[1726214326259,0.2498811,134.84,134.83,26.92598]
[1726214327054,0.2498811,134.84,134.83,6.92598]
[1726214327552,0.2498811,134.84,134.83,0.12549]
[1726214327751,0.2498811,134.84,134.83,6.80049]
[1726214327957,0.2498811,134.84,134.83,6.92598]
[1726214330754,0.2498811,134.84,134.83,30.702864]
[1726214331155,0.2498811,134.84,134.83,52.18582284]
[1726214331554,0.2498811,134.84,134.83,50.702864]
[1726214335765,0.2498811,134.84,134.83,26.92598]
[1726214337268,0.2498811,134.84,134.83,28.40900118]
[1726214337573,0.2498811,134.84,134.83,26.92598]
[1726214339076,0.2498811,134.84,134.83,50.702864]
[1726214340955,0.2498811,134.84,134.83,52.18583734]
[1726214341864,0.2498811,134.84,134.83,50.702864]
[1726214342177,0.2498811,134.84,134.83,52.18570612]
[1726214342984,0.2498811,134.84,134.83,50.702864]
[1726214350185,0.2498811,134.84,134.83,26.92598]
[1726214350385,0.2498811,134.84,134.83,28.40892189]
[1726214353152,0.2498811,134.84,134.83,52.18580589]
[1726214353362,0.2498811,134.84,134.83,50.702864]
[1726214355168,0.2498811,134.84,134.83,26.80049]
[1726214355378,0.2498811,134.84,134.83,6.675]
[1726214356487,0.2498811,134.84,134.83,26.675]
[1726214356785,0.2498811,134.84,134.83,26.80049]
[1726214358169,0.2498811,134.84,134.83,0.12549]
[1726214358370,0.2498811,134.84,134.82,6.6754]
[1726214359469,0.2498811,134.84,134.83,6.675]
[1726214370990,0.2498811,134.84,134.82,26.6754]
[1726214371506,0.2498811,134.84,134.83,6.675]
[1726214387320,0.2498811,134.84,134.82,6.6755]
[1726214388998,0.2498811,134.84,134.83,6.675]
[1726214389194,0.2498811,134.84,134.83,6.80049]
[1726214389618,0.2498811,134.84,134.83,6.92598]
[1726214389790,0.2498811,134.84,134.81,24.4498188]
[1726214390190,0.2498811,134.84,134.82,6.80059]
[1726214390392,0.2498811,134.84,134.82,6.6751]
[1726214391224,0.2498811,134.84,134.81,16.6899]
[1726214391397,0.2498811,134.84,134.8,6.6765]
[1726214393210,0.2498811,134.84,134.81,6.676]
[1726214396019,0.2498811,134.84,134.82,6.6754]
[1726214396212,0.2498811,134.84,134.82,1.48330958]
[1726214396515,0.2498811,134.84,134.81,0.12549]
[1726214396516,0.2498811,134.84,134.81,1.60879958]
[1726214396692,0.2498811,134.84,134.82,0.12549]
[1726214396892,0.2498811,134.84,134.83,6.675]
[1726214397090,0.2498811,134.84,134.83,6.92598]
[1726214403400,0.2498811,134.84,134.83,26.92598]
[1726214404017,0.2498811,134.84,134.83,26.80049]
[1726214404225,0.2498811,134.84,134.83,26.92598]
[1726214404913,0.2498811,134.84,134.83,28.40899359]
[1726214405226,0.2498811,134.84,134.83,26.92598]
[1726214409524,0.2498811,134.84,134.83,26.80049]
[1726214410712,0.2498811,134.84,134.83,26.92598]
[1726214420033,0.2498811,134.84,134.83,26.80049]
[1726214420325,0.2498811,134.84,134.81,20.0]
[1726214421432,0.2498811,134.84,134.82,6.6755]
[1726214422003,0.2498811,134.84,134.83,6.675]
[1726214422817,0.2498811,134.84,134.83,6.80049]
[1726214424335,0.2498811,134.84,134.83,26.92598]
[1726214424520,0.2498811,134.84,134.83,58.40890484]
[1726214425020,0.2498811,134.84,134.83,56.92598]
[1726214432333,0.2498811,134.84,134.83,56.675]
[1726214433856,0.2498811,134.84,134.83,56.80049]
[1726214434523,0.2498811,134.84,134.83,56.675]
[1726214435233,0.2498811,134.84,134.83,56.80049]
[1726214436445,0.2498811,134.84,134.83,56.675]
[1726214440943,0.2498811,134.84,134.83,56.80049]
[1726214441554,0.2498811,134.84,134.83,56.92598]
[1726214443641,0.2498811,134.84,134.83,58.40888613]
[1726214444649,0.2498811,134.84,134.83,97.08980381]
[1726214445351,0.2498811,134.84,134.83,95.60689768]
[1726214446732,0.2498811,134.84,134.83,80.702864]
[1726214448251,0.2498811,134.84,134.83,86.94082942]
[1726214449136,0.2498811,134.84,134.83,42.91296542]
[1726214449345,0.2498811,134.84,134.83,36.675]
[1726214449549,0.2498811,134.84,134.83,42.91413417]
[1726214450047,0.2498811,134.84,134.83,36.675]
[1726214450452,0.2498811,134.84,134.83,63.16625069]
[1726214451329,0.2498811,134.84,134.83,56.92598]
[1726214457346,0.2498811,134.84,134.83,56.80049]
[1726214457954,0.2498811,134.84,134.83,36.80049]
[1726214463149,0.2498811,134.84,134.83,36.92598]
[1726214463537,0.2498811,134.84,134.83,86.94457685]
[1726214463843,0.2498811,134.84,134.83,103.33140486]
[1726214464056,0.2498811,134.84,134.83,101.84861053]
[1726214464458,0.2498811,134.84,134.83,86.94457685]
[1726214465246,0.2498811,134.84,134.83,103.33135343]
[1726214465562,0.2498811,134.84,134.83,103.33134602]
[1726214465868,0.2498811,134.84,134.83,101.84861053]
[1726214468776,8.11e-05,134.84,134.83,125.65095736]
[1726214468950,8.11e-05,134.84,134.83,109.26427685]
[1726214469267,8.11e-05,134.84,134.83,124.16831053]
[1726214469467,0.2498811,134.88,134.87,23.3557]
[1726214469638,0.2498811,134.88,134.87,43.60668]
[1726214471469,0.2498811,134.88,134.87,97.383564]
[1726214472162,0.2498811,134.88,134.87,73.60668]
[1726214473254,0.2498811,134.88,134.87,97.383564]
[1726214476167,0.2498811,134.88,134.87,112.28759768]
[1726214477369,0.2498811,134.88,134.87,97.383564]
[1726214477583,0.2498811,134.88,134.87,73.60668]
[1726214478752,0.2498811,134.88,134.87,97.383564]
[1726214482877,0.2498811,134.88,134.87,112.28759768]
[1726214483451,0.2498811,134.88,134.87,97.383564]
[1726214484451,0.2498811,134.88,134.87,98.8658246]
[1726214485662,0.2498811,134.88,134.87,112.28759768]
[1726214487967,0.2498811,134.88,134.87,97.383564]
[1726214491661,0.2498811,134.88,134.87,73.3557]
[1726214493170,0.2498811,134.88,134.84,37.75504439]
[1726214493494,0.2498811,134.88,134.86,6.6735]
[1726214495599,0.2498811,134.88,134.85,6.6739]
[1726214495899,0.2498811,134.88,134.86,6.6734]
[1726214497598,0.2498811,134.88,134.85,6.6739]
[1726214498492,0.2498811,134.88,134.84,61.24063439]
[1726214499194,16.6511,134.87,134.84,29.9999189]
[1726214499801,12.9512,134.86,134.84,29.9999189]
[1726214501377,6.674,134.85,134.84,29.9999189]
[1726214506398,6.6748,134.84,134.79,14.42434785]
[1726214506604,6.6748,134.84,134.79,6.6769]
[1726214507002,6.6751,134.83,134.79,6.6769]
[1726214507190,6.6751,134.83,134.78,31.24454388]
[1726214507375,6.6751,134.83,134.79,0.25098]
[1726214507581,6.6751,134.83,134.79,6.92788]
[1726214509608,6.6751,134.83,134.79,6.6769]
[1726214510597,6.6756,134.82,134.78,31.11905388]
[1726214510826,6.6756,134.82,134.78,23.3704]
[1726214512884,6.6756,134.82,134.78,16.693]
[1726214513085,6.6761,134.81,134.77,6.678]
[1726214513506,6.6757,134.82,134.78,6.6772]
[1726214515614,6.676,134.81,134.77,23.3722]
[1726214517110,13.0623,134.82,134.78,6.6774]
[1726214518329,22.679,134.83,134.79,6.6768]
[1726214518624,16.0039,134.83,134.79,6.6768]
[1726214518919,22.6789,134.83,134.79,6.6768]
[1726214520800,22.6789,134.83,134.8,30.0]
[1726214522103,16.0039,134.83,134.8,36.676]
[1726214522310,16.0039,134.83,134.8,30.0]
[1726214523126,15.3945,134.87,134.83,16.687]
[1726214523421,15.3945,134.87,134.83,30.0]
[1726214523716,6.6736,134.86,134.83,30.0]
[1726214524097,6.6742,134.85,134.83,30.0]
[1726214526818,6.6737,134.86,134.83,30.0]
[1726214528908,15.3945,134.87,134.83,30.0]
[1726214530533,6.6745,134.84,134.83,30.0]
[1726214531817,6.6752,134.83,134.79,6.6769]
[1726214532015,6.6752,134.83,134.8,30.0]
[1726214532417,6.6757,134.82,134.8,30.0]
[1726214532921,6.6751,134.83,134.8,30.0]
[1726214534437,6.6756,134.82,134.8,30.0]
[1726214536512,6.6751,134.83,134.8,30.0]
[1726214537736,6.676,134.81,134.8,30.0]
[1726214539112,6.6752,134.83,134.8,30.0]
[1726214539430,20.0,134.85,134.8,36.6764]
[1726214539608,6.6747,134.84,134.8,30.0]
[1726214540003,20.0,134.85,134.8,30.0]
[1726214541407,6.6756,134.82,134.8,30.0]
[1726214542032,15.3945,134.87,134.82,6.6754]
[1726214542733,6.6736,134.86,134.81,6.6759]
[1726214542913,6.6736,134.86,134.82,30.0]
[1726214543430,6.6742,134.85,134.82,30.0]
[1726214545234,6.6736,134.86,134.82,36.6753]
[1726214546125,6.6732,134.87,134.82,36.6753]
[1726214547846,6.6735,134.86,134.82,36.6753]
[1726214548312,6.6735,134.86,134.82,30.0]
[1726214548512,6.6735,134.86,134.82,36.6754]
[1726214549116,6.6732,134.87,134.82,36.6754]
[1726214549740,0.2498811,134.88,134.82,30.0]
[1726214549947,6.6743,134.85,134.82,30.0]
[1726214550336,6.6749,134.84,134.82,30.0]
[1726214551216,6.675,134.83,134.81,30.0]
[1726214551851,6.675,134.83,134.78,13.2645]
[1726214552472,30.451084,134.85,134.8,16.6912]
[1726214552776,6.6746,134.84,134.8,16.6912]
[1726214553664,43.776884,134.86,134.78,6.5871]
[1726214553873,6.6755,134.82,134.78,6.5871]
[1726214554459,6.6755,134.82,134.77,16.6944]
[1726214554657,6.6755,134.82,134.77,18.17808179]
[1726214555144,6.6755,134.82,134.77,16.6944]
[1726214555345,6.6755,134.82,134.78,6.6773]
[1726214556269,60.008084,134.86,134.78,6.6773]
[1726214556472,6.6751,134.83,134.78,6.6773]
[1726214557056,6.6751,134.83,134.79,6.677]
[1726214558774,6.6751,134.83,134.78,6.6774]
[1726214560955,6.6747,134.84,134.8,6.6764]
[1726214561173,6.6747,134.84,134.77,16.6944]
[1726214561378,6.6747,134.84,134.78,0.25098]
[1726214561576,6.6752,134.83,134.79,6.6768]
[1726214561772,6.6755,134.82,134.78,6.6775]
[1726214562283,6.6752,134.83,134.78,6.6775]
[1726214565181,6.6752,134.83,134.79,6.6768]
[1726214572881,6.6752,134.83,134.78,6.6774]
[1726214574294,6.6755,134.82,134.78,6.6774]
[1726214575598,6.676,134.81,134.77,23.49779]
[1726214576371,6.6757,134.82,134.77,23.49779]
[1726214576678,6.6757,134.82,134.77,23.3723]
[1726214577074,6.6757,134.82,134.78,6.6773]
[1726214577677,6.6762,134.81,134.77,23.3722]
[1726214578473,6.6767,134.8,134.77,16.6944]
[1726214579480,6.6767,134.8,134.76,6.6781]
[1726214579680,6.677,134.79,134.75,6.6789]
[1726214580190,6.6774,134.79,134.74,23.6272811]
[1726214581395,6.6774,134.79,134.75,6.6789]
[1726214584178,15.0988,134.82,134.74,16.9478811]
[1726214584179,6.6779,134.78,134.74,16.9478811]
[1726214585184,6.6779,134.78,134.74,23.6272811]
[1726214585784,6.6779,134.78,134.74,25.11145229]
[1726214585992,6.6779,134.78,134.74,23.6272811]
[1726214588685,54.0883,134.82,134.75,6.6788]
[1726214588686,6.6771,134.79,134.75,6.6788]
[1726214589506,6.6775,134.78,134.74,23.6272811]
[1726214591700,6.678,134.77,134.74,16.9478811]
[1726214592810,6.678,134.77,134.74,0.2498811]
[1726214595299,6.6773,134.79,134.74,6.9289811]
[1726214595508,6.6777,134.78,134.74,6.9289811]
[1726214596696,6.677,134.79,134.75,6.6789]
[1726214603196,6.6775,134.78,134.74,6.9291811]
[1726214605014,6.6784,134.77,134.74,0.2498811]
[1726214605392,6.6784,134.77,134.74,30.2498811]
[1726214606703,6.6786,134.76,134.74,0.2498811]
[1726214607517,6.679,134.75,134.74,0.2498811]
[1726214612210,38.9942,134.78,134.7,47.63116988]
[1726214612211,6.6798,134.74,134.7,39.8854811]
[1726214612525,6.6801,134.73,134.7,0.2498811]
[1726214612699,6.6805,134.72,134.7,0.2498811]
[1726214613921,6.681,134.71,134.7,0.2498811]
[1726214614222,6.6806,134.72,134.7,0.2498811]
[1726214615208,6.6801,134.73,134.7,0.2498811]
[1726214617421,6.6806,134.72,134.7,0.2498811]
[1726214617918,6.681,134.71,134.7,0.2498811]
[1726214618438,6.681,134.71,134.67,38.4635]
[1726214618720,6.6806,134.72,134.67,39.94839753]
[1726214618921,6.6806,134.72,134.67,38.4635]
[1726214619724,6.6811,134.71,134.67,31.7806]
[1726214620124,6.6811,134.71,134.67,38.4634]
[1726214622042,56.077884,134.74,134.66,20.2498811]
[1726214622244,56.077884,134.74,134.66,6.9331811]
[1726214622420,56.077884,134.74,134.66,0.2498811]
[1726214623113,6.6816,134.7,134.66,6.9332811]
[1726214623416,6.6816,134.7,134.66,0.2498811]
[1726214624856,78.377884,134.74,134.66,0.2498811]
[1726214624857,20.0,134.73,134.66,0.2498811]
[1726214625136,6.682,134.69,134.66,0.2498811]
[1726214626929,6.6816,134.7,134.66,0.2498811]
[1726214627337,20.0,134.73,134.67,6.6828]
[1726214628026,6.6811,134.71,134.66,23.6410811]
[1726214628420,6.6811,134.71,134.67,8.1677917]
[1726214628619,22.5314,134.78,134.7,16.7027]
[1726214628819,6.6796,134.74,134.7,16.7027]
[1726214629229,6.6804,134.73,134.69,15.8023]
[1726214631446,6.6806,134.72,134.67,6.6829]
[1726214631651,6.6806,134.72,134.68,30.0]
[1726214632036,6.6806,134.72,134.67,6.6829]
[1726214632342,6.6806,134.72,134.67,8.16776182]
[1726214632724,6.6806,134.72,134.67,6.6829]
[1726214635254,6.6811,134.71,134.67,6.6829]
[1726214635426,6.6811,134.71,134.68,30.0]
[1726214636947,6.6806,134.72,134.68,30.0]
[1726214638754,6.6806,134.72,134.68,36.6822]
[1726214644143,6.6801,134.73,134.68,36.6822]
[1726214644347,6.6801,134.73,134.69,6.6818]
[1726214645558,6.6801,134.73,134.7,30.0]
[1726214645936,6.6796,134.74,134.7,30.0]
[1726214646156,6.6796,134.74,134.7,36.6814]
[1726214649831,6.6796,134.74,134.7,30.0]
[1726214650347,23.776884,134.76,134.7,30.0]
[1726214650534,6.6805,134.72,134.7,30.0]
[1726214652065,6.6801,134.73,134.7,30.0]
[1726214654642,6.6807,134.72,134.7,30.0]
[1726214657369,6.6807,134.72,134.68,23.3882]
[1726214657566,6.6814,134.71,134.67,6.6828]
[1726214664467,32.7625,134.73,134.66,0.2498811]
[1726214664759,6.6816,134.7,134.66,6.9331811]
[1726214664966,6.6816,134.7,134.66,36.9331811]
[1726214665554,6.6816,134.7,134.66,6.9331811]
[1726214666865,6.6816,134.7,134.66,0.2498811]
[1726214668271,6.6816,134.7,134.66,6.9332811]
[1726214668469,6.681,134.71,134.66,8.41826557]
[1726214668661,6.681,134.71,134.66,6.9332811]
[1726214669168,6.681,134.71,134.66,8.41818525]
[1726214669376,6.681,134.71,134.66,6.9332811]
[1726214669673,6.681,134.71,134.66,8.41816677]
[1726214669973,6.6806,134.72,134.68,6.6823]
[1726214672473,6.6801,134.73,134.68,6.6823]
[1726214675159,6.6805,134.72,134.68,6.6823]
[1726214675664,6.6805,134.72,134.69,30.0]
[1726214680192,33.004,134.76,134.69,30.0]
[1726214680193,6.6802,134.73,134.69,36.6819]
[1726214687193,6.6802,134.73,134.69,30.0]
[1726214687895,6.6802,134.73,134.68,6.6823]
[1726214689685,6.6806,134.72,134.68,6.6823]
[1726214691098,6.6806,134.72,134.69,30.0]
[1726214691302,6.6815,134.7,134.69,30.0]
[1726214691684,6.6815,134.7,134.66,6.9332811]
[1726214691883,6.6811,134.71,134.66,0.2498811]
[1726214692094,6.6815,134.7,134.66,38.4178785]
[1726214692291,6.6815,134.7,134.66,36.9329811]
[1726214694293,6.6815,134.7,134.66,6.9329811]
[1726214696885,16.7021,134.72,134.66,0.2498811]
[1726214698288,6.6816,134.7,134.66,6.9332811]
[1726214700317,6.6811,134.71,134.66,6.9332811]
[1726214700489,6.6811,134.71,134.67,6.6829]
[1726214702010,6.6811,134.71,134.66,23.6414811]
[1726214702218,6.6811,134.71,134.66,25.12639428]
[1726214702787,6.6811,134.71,134.66,23.6414811]
[1726214703305,6.6811,134.71,134.66,25.12639351]
[1726214703696,6.6811,134.71,134.66,23.6414811]
[1726214704116,6.6811,134.71,134.66,25.12639326]
[1726214704812,6.6811,134.71,134.66,23.6414811]
[1726214705820,6.6811,134.71,134.67,30.0]
[1726214707394,6.6808,134.72,134.68,6.6824]
[1726214709316,16.6984,134.75,134.68,6.6824]
[1726214709516,6.6801,134.73,134.69,6.6819]
[1726214710018,6.6801,134.73,134.69,36.6819]
[1726214712213,6.6805,134.72,134.69,30.0]
[1726214715417,6.6802,134.73,134.69,30.0]
[1726214720409,16.6984,134.75,134.69,30.0]
[1726214720720,6.6806,134.72,134.69,30.0]
[1726214722418,6.6817,134.7,134.66,6.9331811]
[1726214722717,6.6817,134.7,134.66,36.9331811]
[1726214723319,6.6823,134.69,134.66,0.2498811]
[1726214726510,6.6826,134.68,134.66,0.2498811]
[1726214726823,6.6821,134.69,134.66,0.2498811]
[1726214730024,20.0,134.72,134.66,0.2498811]
[1726214730528,6.6826,134.68,134.66,0.2498811]
[1726214732005,6.6821,134.69,134.66,0.2498811]
[1726214732223,6.6825,134.68,134.66,0.2498811]
[1726214737930,6.683,134.67,134.66,0.2498811]
[1726214739540,16.7028,134.71,134.62,6.9351811]
[1726214739541,6.6836,134.66,134.62,6.9351811]
[1726214743930,6.6841,134.65,134.62,0.2498811]
[1726214746139,6.6844,134.64,134.62,0.2498811]
[1726214746713,15.77,134.68,134.62,0.2498811]
[1726214746932,6.6849,134.63,134.62,0.2498811]
[1726214752742,16.7078,134.67,134.58,15.3834811]
[1726214752743,6.6856,134.62,134.58,15.3834811]
[1726214753043,16.7078,134.67,134.58,15.3834811]
[1726214753044,6.686,134.61,134.58,15.3834811]
[1726214753820,16.7078,134.67,134.58,15.3834811]
[1726214754031,6.6856,134.62,134.58,15.3834811]
[1726214754736,6.6853,134.63,134.59,1.48583637]
[1726214755041,6.6853,134.63,134.59,6.6869]
[1726214760153,6.6853,134.63,134.59,8.17252526]
[1726214760370,6.6845,134.64,134.6,6.6864]
[1726214760553,6.6845,134.64,134.61,1.4855647]
[1726214761731,6.6845,134.64,134.6,8.17196594]
[1726214762052,6.6845,134.64,134.6,6.6864]
[1726214762655,6.685,134.63,134.59,23.404]
[1726214766962,6.6855,134.62,134.59,16.7172]
[1726214767842,6.6851,134.63,134.59,16.7172]
[1726214768363,6.6851,134.63,134.59,23.404]
[1726214769063,16.7078,134.67,134.6,1.48561105]
[1726214769262,16.7078,134.67,134.59,16.7172]
[1726214769263,15.77,134.68,134.61,18.45098279]
[1726214769571,6.6825,134.68,134.64,6.6844]
[1726214769754,6.6825,134.68,134.65,1.48508931]
[1726214770255,6.6821,134.69,134.65,1.48508931]
[1726214770844,6.6825,134.68,134.65,1.48508931]
[1726214771043,6.6825,134.68,134.64,6.6844]
[1726214771772,6.6825,134.68,134.64,8.16947056]
[1726214772673,6.6819,134.7,134.65,6.6835]
[1726214772863,16.5484811,134.72,134.65,6.6835]
[1726214772864,6.6814,134.71,134.66,8.16815804]
[1726214773174,6.6814,134.71,134.67,1.48476469]
[1726214773477,6.6814,134.71,134.65,16.83479]
[1726214773967,6.6814,134.71,134.66,1.48479202]
[1726214774362,6.6814,134.71,134.67,6.6828]
[1726214775171,6.6814,134.71,134.68,1.48479207]
[1726214775476,6.9304811,134.72,134.67,6.6828]
[1726214776871,6.6811,134.71,134.67,6.6828]
[1726214777471,6.6811,134.71,134.68,1.4847159]
[1726214779378,6.6811,134.71,134.67,6.6828]
[1726214782365,6.9306811,134.72,134.68,6.6824]
[1726214784857,0.2498811,134.72,134.69,8.16663025]
[1726214785091,0.2498811,134.72,134.7,6.6811]
[1726214785389,0.2498811,134.72,134.71,1.48439877]
[1726214789182,0.2498811,134.72,134.71,8.16539877]
[1726214789485,0.2498811,134.72,134.71,8.29088877]
[1726214790670,0.2498811,134.72,134.71,8.41637877]
[1726214791565,0.2498811,134.72,134.71,6.93198]
[1726214792171,0.2498811,134.72,134.71,8.41606034]
[1726214793491,0.2498811,134.72,134.71,6.93198]
[1726214793789,0.2498811,134.72,134.71,8.41606137]
[1726214794390,0.2498811,134.72,134.71,6.93198]
[1726214802594,0.2498811,134.72,134.7,20.0]
[1726214802781,0.2498811,134.72,134.69,23.3865]
[1726214802988,0.2498811,134.72,134.7,30.0]
[1726214803991,0.2498811,134.72,134.69,23.3865]
[1726214805985,6.9303811,134.72,134.69,16.7045]
[1726214806684,0.2498811,134.72,134.69,16.7045]
[1726214809893,0.2498811,134.72,134.69,23.3864]
[1726214810383,0.2498811,134.72,134.7,1.48449363]
[1726214811801,0.2498811,134.72,134.69,23.3864]
[1726214812404,0.2498811,134.72,134.7,1.48449159]
[1726214812896,0.2498811,134.72,134.69,23.3864]
[1726214813277,0.2498811,134.72,134.69,16.7045]
[1726214813608,0.2498811,134.72,134.7,8.16579172]
[1726214814297,0.2498811,134.72,134.69,16.7045]
[1726214814298,0.2498811,134.72,134.71,8.16540401]
[1726214814505,0.2498811,134.72,134.71,6.681]
[1726214814807,0.2498811,134.72,134.71,6.80649]
[1726214815018,0.2498811,134.72,134.71,8.29067327]
[1726214815216,0.2498811,134.72,134.71,6.80649]
[1726214815819,0.2498811,134.72,134.71,8.41616622]
[1726214817019,0.2498811,134.72,134.71,52.19296439]
[1726214817226,0.2498811,134.72,134.71,82.19296439]
[1726214818206,0.2498811,134.72,134.71,80.708864]
[1726214818406,0.2498811,134.72,134.71,95.61289768]
[1726214818605,0.2498811,134.72,134.71,97.09693243]
[1726214819104,0.2498811,134.72,134.71,130.50193243]
[1726214819519,0.2498811,134.72,134.71,136.76224669]
[1726214820691,0.2498811,134.72,134.71,130.50193243]
[1726214821095,0.2498811,134.72,134.71,136.76137636]
[1726214824311,0.2498811,134.72,134.71,135.27734161]
[1726214824716,0.2498811,134.72,134.71,111.37496761]
[1726214824911,0.2498811,134.72,134.71,96.47093393]
[1726214825237,0.2498811,134.72,134.71,90.21149]
[1726214825534,0.2498811,134.72,134.71,96.47327257]
[1726214826206,0.2498811,134.72,134.71,90.21149]
[1726214827330,0.2498811,134.72,134.71,91.69541098]
[1726214827832,0.2498811,134.72,134.71,114.113864]
[1726214831216,0.2498811,134.72,134.71,115.59779716]
[1726214831418,0.2498811,134.72,134.71,114.113864]
[1726214835935,0.2498811,134.72,134.71,115.59785633]
[1726214837423,0.2498811,134.72,134.71,114.113864]
[1726214838146,0.2498811,134.72,134.71,115.59781032]
[1726214838319,0.2498811,134.72,134.71,114.113864]
[1726214839926,0.2498811,134.72,134.71,115.59784448]
[1726214840126,0.2498811,134.72,134.71,114.113864]
[1726214847454,0.2498811,134.72,134.71,80.708864]
[1726214848452,0.2498811,134.72,134.71,50.708864]
[1726214849346,0.2498811,134.72,134.71,52.19290428]
[1726214850526,0.2498811,134.72,134.71,82.19290428]
[1726214851231,0.2498811,134.72,134.71,97.09693796]
[1726214852345,0.2498811,134.72,134.71,103.35881371]
[1726214852546,8.11e-05,134.72,134.71,103.35855286]
[1726214853448,0.2498811,134.76,134.75,23.3765]
[1726214853754,0.2498811,134.76,134.75,113.66625692]
[1726214854545,0.2498811,134.76,134.75,119.92299493]
[1726214854930,0.2498811,134.76,134.75,119.9226219]
[1726214855430,0.2498811,134.76,134.75,113.66625692]
[1726214855635,0.2498811,134.76,134.75,113.79174692]
[1726214856139,0.2498811,134.76,134.75,120.04775793]
[1726214857345,0.2498811,134.76,134.75,120.04757994]
[1726214857559,0.2498811,134.76,134.75,118.56440869]
[1726214857861,0.2498811,134.76,134.75,112.30839768]
[1726214858035,0.2498811,134.76,134.75,118.56380298]
[1726214860054,0.2498811,134.76,134.75,103.6597693]
[1726214860267,0.2498811,134.76,134.75,118.56380298]
[1726214864464,0.2498811,134.76,134.75,112.30839768]
[1726214864659,0.2498811,134.76,134.75,118.56380685]
[1726214865463,0.2498811,134.76,134.75,112.30839768]
[1726214880558,0.2498811,134.76,134.75,97.153384]
[1726214880757,0.2498811,134.76,134.75,73.3765]
[1726214881972,0.2498811,134.76,134.75,53.3765]
[1726214883179,0.2498811,134.76,134.75,97.153384]
[1726214883346,0.2498811,134.76,134.75,97.404364]
[1726214883551,0.2498811,134.76,134.75,98.88805776]
[1726214887280,0.2498811,134.76,134.75,97.404364]
[1726214887578,0.2498811,134.76,134.75,98.88805965]
[1726214887966,0.2498811,134.76,134.75,97.404364]
[1726214892576,0.2498811,134.76,134.75,98.88806243]
[1726214893100,0.2498811,134.76,134.75,113.79205818]
[1726214893466,0.2498811,134.76,134.75,120.04869711]
[1726214893963,0.2498811,134.76,134.75,113.79205818]
[1726214894269,0.2498811,134.76,134.75,120.04869735]
[1726214897097,0.2498811,134.76,134.75,113.79205818]
[1726214897472,0.2498811,134.76,134.75,120.0506243]
[1726214898192,0.2498811,134.76,134.75,141.89783241]
[1726214899183,0.2498811,134.76,134.75,126.99379873]
[1726214899394,0.2498811,134.76,134.75,141.89783241]
[1726214900589,0.2498811,134.76,134.75,135.63926629]
[1726214900904,0.2498811,134.76,134.75,141.89800866]
[1726214902674,0.2498811,134.76,134.75,144.87054766]
[1726214903902,0.2498811,134.76,134.75,144.87277299]
[1726214905409,0.2498811,134.76,134.75,147.66619029]
[1726214905918,0.2498811,134.76,134.75,147.66617101]
[1726214907378,0.2498811,134.76,134.75,141.40522259]
[1726214907580,0.2498811,134.76,134.75,147.66619029]
[1726214909680,0.2498811,134.8,134.75,147.66619029]
[1726214909681,0.2498811,134.8,134.79,82.05051768]
[1726214909880,0.2498811,134.8,134.79,120.04544996]
[1726214915713,0.2498811,134.8,134.79,103.6584317]
[1726214916024,0.2498811,134.8,134.79,118.56246538]
[1726214917116,0.2498811,134.8,134.79,103.6584317]
[1726214917321,0.2498811,134.8,134.79,98.88050358]
[1726214917628,0.2498811,134.8,134.79,113.78453726]
[1726214919714,0.2498811,134.8,134.79,120.03944306]
[1726214920323,0.2498811,134.8,134.79,113.78453726]
[1726214921925,0.2498811,134.8,134.79,98.88050358]
[1726214922992,0.2498811,134.8,134.79,97.397464]
[1726214923427,0.2498811,134.8,134.79,98.88050874]
[1726214924126,0.2498811,134.8,134.79,97.397464]
[1726214930235,0.2498811,134.8,134.79,67.397464]
[1726214931933,0.2498811,134.8,134.79,97.397464]
[1726214936314,0.2498811,134.8,134.79,98.88072518]
[1726214936627,0.2498811,134.8,134.79,97.397464]
[1726214939705,0.2498811,134.8,134.79,67.397464]
[1726214942220,0.2498811,134.8,134.79,75.13701168]
[1726214942640,0.2498811,134.8,134.79,105.13701168]
[1726214943130,0.2498811,134.8,134.79,103.65384291]